[Event "Titled Tuesday Blitz June 6 Late 2023"]
[White "Matinian, Nikita"]
[Black "Hansen, Eric"]
[WhiteFideId "24129100"]
[BlackFideId "2606771"]
[WhiteElo "2422"]
[BlackElo "2561"]
[Result "1-0"]
[Round "10"]
[TimeControl "180+2"]
[Date "2023.06.07"]
[WhiteClock "0:00:06"]
[BlackClock "0:00:01"]
[Board "18"]

1. e4 {[%clk 0:03:00]}  c5 {[%clk 0:03:00]} 2. Nf3 {[%clk 0:03:01]}  d6 {[%clk 0:03:00]} 3. d4 {[%clk 0:03:02]}  cxd4 {[%clk 0:03:00]} 4. Nxd4 {[%clk 0:03:03]}  Nf6 {[%clk 0:03:01]} 5. Nc3 {[%clk 0:03:03]}  a6 {[%clk 0:03:01]} 6. h3 {[%clk 0:03:03]}  e5 {[%clk 0:02:56]} 7. Nb3 {[%clk 0:03:04]}  Be6 {[%clk 0:02:56]} 8. f4 {[%clk 0:03:03]}  exf4 {[%clk 0:02:54]} 9. Bxf4 {[%clk 0:03:03]}  Nc6 {[%clk 0:02:55]} 10. Qf3 {[%clk 0:03:02]}  Ne5 {[%clk 0:02:52]} 11. Qf2 {[%clk 0:02:59]}  Rc8 {[%clk 0:02:52]} 12. O-O-O {[%clk 0:02:59]}  Rxc3 {[%clk 0:02:41]} 13. Bxe5 {[%clk 0:02:57]}  Rc8 {[%clk 0:01:26]} 14. Bh2 {[%clk 0:02:37]}  Nxe4 {[%clk 0:01:12]} 15. Qe3 {[%clk 0:02:37]}  d5 {[%clk 0:01:08]} 16. Bd3 {[%clk 0:02:37]}  Qh4 {[%clk 0:00:39]} 17. Qb6 {[%clk 0:02:20]}  Be7 {[%clk 0:00:38]} 18. Qxb7 {[%clk 0:02:09]}  O-O {[%clk 0:00:38]} 19. Rhf1 {[%clk 0:02:01]}  a5 {[%clk 0:00:34]} 20. Kb1 {[%clk 0:01:36]}  a4 {[%clk 0:00:33]} 21. Nd4 {[%clk 0:01:36]}  Bd6 {[%clk 0:00:16]} 22. Bxd6 {[%clk 0:01:16]}  Nxd6 {[%clk 0:00:16]} 23. Qa6 {[%clk 0:01:16]}  Qe7 {[%clk 0:00:05]} 24. Qxa4 {[%clk 0:01:08]}  Rb8 {[%clk 0:00:05]} 25. b3 {[%clk 0:01:06]}  Rfc8 {[%clk 0:00:04]} 26. Rde1 {[%clk 0:01:01]}  Rb6 {[%clk 0:00:05]} 27. Nxe6 {[%clk 0:00:58]}  fxe6 {[%clk 0:00:05]} 28. Qd4 {[%clk 0:00:46]}  Qc7 {[%clk 0:00:02]} 29. Rxe6 {[%clk 0:00:45]}  Qc6 {[%clk 0:00:01]} 30. Re7 {[%clk 0:00:42]}  Ne8 {[%clk 0:00:01]} 31. Qh4 {[%clk 0:00:25]}  Nf6 {[%clk 0:00:01]} 32. Bf5 {[%clk 0:00:07]}  Rc7 {[%clk 0:00:01]} 33. Re6 {[%clk 0:00:06]} 1-0


[Site "https://www.chess.com"]

[Event "Titled Tuesday Blitz June 6 Late 2023"]
[White "Elsa167"]
[Black "Skatchkov, Pavel"]
[BlackFideId "4121848"]
[WhiteElo "2878"]
[BlackElo "2476"]
[Result "1-0"]
[Round "10"]
[TimeControl "180+2"]
[Date "2023.06.07"]
[WhiteClock "0:00:23"]
[BlackClock "0:00:01"]
[Board "19"]

1. e4 {[%clk 0:03:00]}  e5 {[%clk 0:03:00]} 2. Nf3 {[%clk 0:03:01]}  d5 {[%clk 0:02:58]} 3. exd5 {[%clk 0:02:59]}  e4 {[%clk 0:02:57]} 4. Qe2 {[%clk 0:02:59]}  Nf6 {[%clk 0:02:57]} 5. Nc3 {[%clk 0:02:57]}  Be7 {[%clk 0:02:57]} 6. Nxe4 {[%clk 0:02:57]}  Nxd5 {[%clk 0:02:58]} 7. d3 {[%clk 0:02:52]}  O-O {[%clk 0:02:58]} 8. Qd1 {[%clk 0:02:51]}  Re8 {[%clk 0:02:59]} 9. Be2 {[%clk 0:02:51]}  c5 {[%clk 0:02:59]} 10. O-O {[%clk 0:02:51]}  Nc6 {[%clk 0:03:00]} 11. Re1 {[%clk 0:02:42]}  Bf5 {[%clk 0:03:00]} 12. Ng3 {[%clk 0:02:41]}  Bg6 {[%clk 0:02:59]} 13. c3 {[%clk 0:02:38]}  h6 {[%clk 0:02:58]} 14. Bf1 {[%clk 0:02:37]}  Qc7 {[%clk 0:02:58]} 15. Qa4 {[%clk 0:02:30]}  Rad8 {[%clk 0:02:54]} 16. Bd2 {[%clk 0:02:14]}  Nb6 {[%clk 0:02:49]} 17. Qg4 {[%clk 0:02:11]}  Nd5 {[%clk 0:02:34]} 18. Nf5 {[%clk 0:02:02]}  Bf8 {[%clk 0:02:30]} 19. N3h4 {[%clk 0:02:01]}  Ne5 {[%clk 0:02:20]} 20. Qg3 {[%clk 0:02:02]}  Bxf5 {[%clk 0:01:20]} 21. Nxf5 {[%clk 0:02:02]}  Ng6 {[%clk 0:01:20]} 22. Qxc7 {[%clk 0:01:57]}  Nxc7 {[%clk 0:01:20]} 23. g3 {[%clk 0:01:52]}  Ne5 {[%clk 0:01:17]} 24. Kg2 {[%clk 0:01:43]}  Nxd3 {[%clk 0:01:16]} 25. Rxe8 {[%clk 0:01:42]}  Nxe8 {[%clk 0:01:16]} 26. Bxd3 {[%clk 0:01:30]}  Rxd3 {[%clk 0:01:16]} 27. Re1 {[%clk 0:01:28]}  Nf6 {[%clk 0:01:11]} 28. Bf4 {[%clk 0:01:26]}  Rd7 {[%clk 0:00:39]} 29. Be5 {[%clk 0:01:22]}  Nd5 {[%clk 0:00:33]} 30. h4 {[%clk 0:01:07]}  g6 {[%clk 0:00:31]} 31. Ne3 {[%clk 0:01:06]}  Nxe3+ {[%clk 0:00:30]} 32. Rxe3 {[%clk 0:01:07]}  Be7 {[%clk 0:00:22]} 33. Re2 {[%clk 0:01:02]}  b6 {[%clk 0:00:18]} 34. c4 {[%clk 0:01:02]}  h5 {[%clk 0:00:19]} 35. Kf3 {[%clk 0:01:00]}  f6 {[%clk 0:00:18]} 36. Bf4 {[%clk 0:00:55]}  Kf7 {[%clk 0:00:18]} 37. b3 {[%clk 0:00:45]}  Rd3+ {[%clk 0:00:17]} 38. Be3 {[%clk 0:00:45]}  Rd1 {[%clk 0:00:17]} 39. Ke4 {[%clk 0:00:43]}  Ke6 {[%clk 0:00:16]} 40. Bf4 {[%clk 0:00:42]}  Rd4+ {[%clk 0:00:10]} 41. Kf3+ {[%clk 0:00:43]}  Kf7 {[%clk 0:00:11]} 42. Bb8 {[%clk 0:00:42]}  Rd3+ {[%clk 0:00:11]} 43. Kg2 {[%clk 0:00:42]}  Rd7 {[%clk 0:00:11]} 44. f3 {[%clk 0:00:42]}  Bd6 {[%clk 0:00:10]} 45. Bxd6 {[%clk 0:00:38]}  Rxd6 {[%clk 0:00:10]} 46. g4 {[%clk 0:00:38]}  hxg4 {[%clk 0:00:07]} 47. fxg4 {[%clk 0:00:39]}  Rd4 {[%clk 0:00:07]} 48. Kf3 {[%clk 0:00:39]}  Rd3+ {[%clk 0:00:07]} 49. Re3 {[%clk 0:00:34]}  Rd2 {[%clk 0:00:08]} 50. a4 {[%clk 0:00:33]}  Rh2 {[%clk 0:00:08]} 51. Kg3 {[%clk 0:00:30]}  Rb2 {[%clk 0:00:08]} 52. Rd3 {[%clk 0:00:29]}  Ke6 {[%clk 0:00:07]} 53. h5 {[%clk 0:00:29]}  gxh5 {[%clk 0:00:04]} 54. gxh5 {[%clk 0:00:30]}  Rb1 {[%clk 0:00:04]} 55. Kg4 {[%clk 0:00:27]}  Rg1+ {[%clk 0:00:04]} 56. Rg3 {[%clk 0:00:28]}  f5+ {[%clk 0:00:03]} 57. Kf4 {[%clk 0:00:25]}  Rh1 {[%clk 0:00:04]} 58. Kg5 {[%clk 0:00:25]}  f4 {[%clk 0:00:01]} 59. Rg2 {[%clk 0:00:23]} 1-0


[Site "https://www.chess.com"]

[Event "Titled Tuesday Blitz June 6 Late 2023"]
[White "Bryakin, Mikhail"]
[Black "Martic, Ivan"]
[WhiteFideId "4165314"]
[BlackFideId "929301"]
[WhiteElo "2464"]
[BlackElo "2346"]
[Result "1-0"]
[Round "10"]
[TimeControl "180+2"]
[Date "2023.06.07"]
[WhiteClock "0:00:08"]
[BlackClock "0:00:01"]
[Board "21"]

1. c4 {[%clk 0:02:59]}  g6 {[%clk 0:02:58]} 2. h4 {[%clk 0:02:54]}  Nf6 {[%clk 0:02:56]} 3. b3 {[%clk 0:02:53]}  Bg7 {[%clk 0:02:52]} 4. Bb2 {[%clk 0:02:53]}  c6 {[%clk 0:02:49]} 5. d3 {[%clk 0:02:51]}  d5 {[%clk 0:02:45]} 6. Nd2 {[%clk 0:02:51]}  a5 {[%clk 0:02:43]} 7. Ngf3 {[%clk 0:02:50]}  a4 {[%clk 0:02:39]} 8. g3 {[%clk 0:02:47]}  Qa5 {[%clk 0:02:30]} 9. Rc1 {[%clk 0:02:43]}  Na6 {[%clk 0:02:21]} 10. Bc3 {[%clk 0:02:42]}  Qb6 {[%clk 0:02:18]} 11. Bg2 {[%clk 0:02:41]}  Ng4 {[%clk 0:01:57]} 12. O-O {[%clk 0:02:28]}  d4 {[%clk 0:01:47]} 13. Ba1 {[%clk 0:02:15]}  axb3 {[%clk 0:01:43]} 14. axb3 {[%clk 0:02:15]}  c5 {[%clk 0:01:40]} 15. e3 {[%clk 0:02:13]}  O-O {[%clk 0:01:30]} 16. exd4 {[%clk 0:02:09]}  cxd4 {[%clk 0:01:31]} 17. Qe2 {[%clk 0:02:04]}  e5 {[%clk 0:01:18]} 18. Ng5 {[%clk 0:01:56]}  Nc5 {[%clk 0:01:02]} 19. Bd5 {[%clk 0:01:55]}  Bf5 {[%clk 0:00:55]} 20. Nge4 {[%clk 0:01:54]}  Ra2 {[%clk 0:00:38]} 21. Qf3 {[%clk 0:01:40]}  Rxd2 {[%clk 0:00:27]} 22. Nxd2 {[%clk 0:01:37]}  Nxd3 {[%clk 0:00:26]} 23. Rcd1 {[%clk 0:01:33]}  Nf6 {[%clk 0:00:20]} 24. Qg2 {[%clk 0:01:21]}  Nxd5 {[%clk 0:00:18]} 25. cxd5 {[%clk 0:01:19]}  Nb4 {[%clk 0:00:18]} 26. Nc4 {[%clk 0:01:18]}  Qd8 {[%clk 0:00:17]} 27. Rfe1 {[%clk 0:01:15]}  Bc2 {[%clk 0:00:17]} 28. Rd2 {[%clk 0:01:12]}  Bxb3 {[%clk 0:00:17]} 29. Nxe5 {[%clk 0:01:12]}  Bxd5 {[%clk 0:00:16]} 30. Qf1 {[%clk 0:01:11]}  d3 {[%clk 0:00:14]} 31. Nxd3 {[%clk 0:00:58]}  Bc4 {[%clk 0:00:14]} 32. Bxg7 {[%clk 0:00:57]}  Kxg7 {[%clk 0:00:09]} 33. Re4 {[%clk 0:00:41]}  Bxd3 {[%clk 0:00:08]} 34. Qa1+ {[%clk 0:00:41]}  Kg8 {[%clk 0:00:06]} 35. Rxb4 {[%clk 0:00:41]}  Qe7 {[%clk 0:00:06]} 36. Rd4 {[%clk 0:00:34]}  Bb5 {[%clk 0:00:05]} 37. Qb1 {[%clk 0:00:34]}  Bc6 {[%clk 0:00:05]} 38. Qd1 {[%clk 0:00:28]}  Qe6 {[%clk 0:00:04]} 39. Kh2 {[%clk 0:00:22]}  Qf5 {[%clk 0:00:03]} 40. Qg4 {[%clk 0:00:17]}  Qf6 {[%clk 0:00:02]} 41. Qf4 {[%clk 0:00:17]}  Qe6 {[%clk 0:00:02]} 42. Rd8 {[%clk 0:00:09]}  Qe1 {[%clk 0:00:01]} 43. Rd1 {[%clk 0:00:08]} 1-0


[Site "https://www.chess.com"]

[Event "Titled Tuesday Blitz June 6 Late 2023"]
[White "Wadsworth, Matthew J"]
[Black "Gadimbayli, Abdulla"]
[WhiteFideId "415804"]
[BlackFideId "13404938"]
[WhiteElo "2347"]
[BlackElo "2386"]
[Result "0-1"]
[Round "10"]
[TimeControl "180+2"]
[Date "2023.06.07"]
[WhiteClock "0:00:04"]
[BlackClock "0:00:24"]
[Board "22"]

1. c4 {[%clk 0:03:00]}  g6 {[%clk 0:02:59]} 2. g3 {[%clk 0:03:00]}  Bg7 {[%clk 0:03:00]} 3. Bg2 {[%clk 0:03:00]}  Nf6 {[%clk 0:03:01]} 4. Nc3 {[%clk 0:03:00]}  O-O {[%clk 0:03:02]} 5. Nf3 {[%clk 0:03:01]}  c6 {[%clk 0:03:03]} 6. e4 {[%clk 0:02:54]}  d5 {[%clk 0:03:03]} 7. cxd5 {[%clk 0:02:52]}  cxd5 {[%clk 0:03:04]} 8. e5 {[%clk 0:02:52]}  Ne4 {[%clk 0:03:05]} 9. d4 {[%clk 0:02:49]}  Nc6 {[%clk 0:03:05]} 10. O-O {[%clk 0:02:49]}  Bg4 {[%clk 0:03:01]} 11. h3 {[%clk 0:02:46]}  Bxf3 {[%clk 0:03:01]} 12. Bxf3 {[%clk 0:02:46]}  Qd7 {[%clk 0:03:02]} 13. Bg2 {[%clk 0:02:43]}  Nxc3 {[%clk 0:02:59]} 14. bxc3 {[%clk 0:02:43]}  Rac8 {[%clk 0:02:58]} 15. Qb3 {[%clk 0:02:28]}  Rfd8 {[%clk 0:02:52]} 16. h4 {[%clk 0:02:17]}  b6 {[%clk 0:02:49]} 17. Kh2 {[%clk 0:02:17]}  Na5 {[%clk 0:02:47]} 18. Qc2 {[%clk 0:01:58]}  Qf5 {[%clk 0:02:47]} 19. Qd2 {[%clk 0:01:47]}  Nc4 {[%clk 0:02:43]} 20. Qe2 {[%clk 0:01:47]}  Qd7 {[%clk 0:02:29]} 21. Bh3 {[%clk 0:01:44]}  e6 {[%clk 0:02:29]} 22. Bg5 {[%clk 0:01:44]}  Re8 {[%clk 0:02:28]} 23. h5 {[%clk 0:01:44]}  Na5 {[%clk 0:02:26]} 24. Rfc1 {[%clk 0:01:40]}  Qa4 {[%clk 0:02:23]} 25. Qf3 {[%clk 0:01:23]}  Qa3 {[%clk 0:02:20]} 26. Qf4 {[%clk 0:01:18]}  Rc7 {[%clk 0:02:14]} 27. Bf6 {[%clk 0:01:16]}  Qf8 {[%clk 0:01:45]} 28. g4 {[%clk 0:00:58]}  Bh6 {[%clk 0:01:40]} 29. g5 {[%clk 0:00:58]}  Bg7 {[%clk 0:01:41]} 30. Bxg7 {[%clk 0:00:56]}  Qxg7 {[%clk 0:01:41]} 31. h6 {[%clk 0:00:56]}  Qf8 {[%clk 0:01:41]} 32. Qf6 {[%clk 0:00:54]}  Nc4 {[%clk 0:01:41]} 33. Bf1 {[%clk 0:00:47]}  Nd2 {[%clk 0:01:22]} 34. Bd3 {[%clk 0:00:43]}  Rec8 {[%clk 0:01:22]} 35. Rc2 {[%clk 0:00:41]}  Nc4 {[%clk 0:01:19]} 36. a4 {[%clk 0:00:40]}  b5 {[%clk 0:01:15]} 37. axb5 {[%clk 0:00:39]}  Nb6 {[%clk 0:01:15]} 38. Ra3 {[%clk 0:00:36]}  Nd7 {[%clk 0:01:15]} 39. Qg7+ {[%clk 0:00:32]}  Qxg7 {[%clk 0:01:12]} 40. hxg7 {[%clk 0:00:33]}  Kxg7 {[%clk 0:01:10]} 41. Kg3 {[%clk 0:00:30]}  Nb6 {[%clk 0:01:06]} 42. Kf3 {[%clk 0:00:28]}  h5 {[%clk 0:01:02]} 43. gxh6+ {[%clk 0:00:28]}  Kxh6 {[%clk 0:01:02]} 44. Ke3 {[%clk 0:00:27]}  Kg7 {[%clk 0:01:03]} 45. Kd2 {[%clk 0:00:22]}  Rh8 {[%clk 0:01:01]} 46. Rca2 {[%clk 0:00:19]}  Nc8 {[%clk 0:01:00]} 47. Ra6 {[%clk 0:00:15]}  Rh2 {[%clk 0:00:59]} 48. Rc6 {[%clk 0:00:15]}  Rxc6 {[%clk 0:00:47]} 49. bxc6 {[%clk 0:00:14]}  Rxf2+ {[%clk 0:00:47]} 50. Be2 {[%clk 0:00:15]}  Rh2 {[%clk 0:00:48]} 51. Rb2 {[%clk 0:00:14]}  Ne7 {[%clk 0:00:39]} 52. c7 {[%clk 0:00:11]}  Rh8 {[%clk 0:00:39]} 53. Rb8 {[%clk 0:00:09]}  a5 {[%clk 0:00:38]} 54. Ba6 {[%clk 0:00:08]}  g5 {[%clk 0:00:31]} 55. Ke3 {[%clk 0:00:07]}  Rh3+ {[%clk 0:00:30]} 56. Kf2 {[%clk 0:00:07]}  Rxc3 {[%clk 0:00:29]} 57. c8=Q {[%clk 0:00:07]}  Nxc8 {[%clk 0:00:30]} 58. Bxc8 {[%clk 0:00:06]}  a4 {[%clk 0:00:27]} 59. Ra8 {[%clk 0:00:07]}  a3 {[%clk 0:00:27]} 60. Bd7 {[%clk 0:00:06]}  Kg6 {[%clk 0:00:27]} 61. Be8 {[%clk 0:00:06]}  g4 {[%clk 0:00:24]} 62. Ra7 {[%clk 0:00:05]}  Kf5 {[%clk 0:00:25]} 63. Bxf7 {[%clk 0:00:05]}  g3+ {[%clk 0:00:24]} 64. Kg2 {[%clk 0:00:05]}  Kf4 {[%clk 0:00:21]} 65. Bxe6 {[%clk 0:00:05]}  Rc2+ {[%clk 0:00:21]} 66. Kg1 {[%clk 0:00:05]}  a2 {[%clk 0:00:22]} 67. Bxd5 {[%clk 0:00:05]}  Rc1+ {[%clk 0:00:22]} 68. Kg2 {[%clk 0:00:05]}  a1=Q {[%clk 0:00:23]} 69. Rxa1 {[%clk 0:00:05]}  Rxa1 {[%clk 0:00:24]} 70. e6 {[%clk 0:00:05]}  Re1 {[%clk 0:00:24]} 71. Bc4 {[%clk 0:00:05]}  Re4 {[%clk 0:00:24]} 72. d5 {[%clk 0:00:04]}  Rxc4 {[%clk 0:00:22]} 73. e7 {[%clk 0:00:04]}  Re4 {[%clk 0:00:22]} 74. d6 {[%clk 0:00:05]}  Re2+ {[%clk 0:00:23]} 75. Kf1 {[%clk 0:00:05]}  Kf3 {[%clk 0:00:23]} 76. d7 {[%clk 0:00:04]}  g2+ {[%clk 0:00:24]} 0-1


[Site "https://www.chess.com"]

[Event "Titled Tuesday Blitz June 6 Late 2023"]
[White "Oro, Faustino"]
[Black "Goryachkina, Aleksandra"]
[WhiteFideId "20000197"]
[BlackFideId "4147103"]
[WhiteElo "1984"]
[BlackElo "2471"]
[Result "0-1"]
[Round "10"]
[TimeControl "180+2"]
[Date "2023.06.07"]
[WhiteClock "0:00:03"]
[BlackClock "0:00:06"]
[Board "23"]

1. e4 {[%clk 0:02:59]}  c6 {[%clk 0:02:59]} 2. d4 {[%clk 0:02:58]}  d5 {[%clk 0:02:59]} 3. e5 {[%clk 0:02:57]}  Bf5 {[%clk 0:02:59]} 4. h4 {[%clk 0:02:57]}  a6 {[%clk 0:02:57]} 5. Nf3 {[%clk 0:02:41]}  e6 {[%clk 0:02:55]} 6. Bd3 {[%clk 0:02:39]}  Bxd3 {[%clk 0:02:47]} 7. Qxd3 {[%clk 0:02:40]}  c5 {[%clk 0:02:47]} 8. c3 {[%clk 0:02:40]}  Nc6 {[%clk 0:02:46]} 9. O-O {[%clk 0:02:37]}  Rc8 {[%clk 0:02:38]} 10. dxc5 {[%clk 0:02:16]}  Bxc5 {[%clk 0:02:37]} 11. Bf4 {[%clk 0:02:17]}  Nge7 {[%clk 0:02:35]} 12. Nbd2 {[%clk 0:02:16]}  h6 {[%clk 0:02:33]} 13. Rfe1 {[%clk 0:02:15]}  O-O {[%clk 0:02:27]} 14. h5 {[%clk 0:02:13]}  b5 {[%clk 0:02:06]} 15. Re2 {[%clk 0:01:56]}  b4 {[%clk 0:01:23]} 16. Nb3 {[%clk 0:01:39]}  Bb6 {[%clk 0:01:19]} 17. Qxa6 {[%clk 0:01:29]}  bxc3 {[%clk 0:01:18]} 18. bxc3 {[%clk 0:01:29]}  Nf5 {[%clk 0:01:17]} 19. Qd3 {[%clk 0:01:27]}  Na5 {[%clk 0:01:00]} 20. Nbd4 {[%clk 0:01:24]}  Nxd4 {[%clk 0:00:43]} 21. cxd4 {[%clk 0:01:24]}  Nc4 {[%clk 0:00:42]} 22. g4 {[%clk 0:01:16]}  f6 {[%clk 0:00:36]} 23. Bg3 {[%clk 0:01:09]}  f5 {[%clk 0:00:33]} 24. gxf5 {[%clk 0:00:52]}  Rxf5 {[%clk 0:00:33]} 25. Nh4 {[%clk 0:00:51]}  Rxh5 {[%clk 0:00:32]} 26. Qg6 {[%clk 0:00:48]}  Qe8 {[%clk 0:00:28]} 27. Qd3 {[%clk 0:00:47]}  Qe7 {[%clk 0:00:26]} 28. Ng6 {[%clk 0:00:41]}  Qf7 {[%clk 0:00:26]} 29. Nf4 {[%clk 0:00:39]}  Rf5 {[%clk 0:00:25]} 30. Ng2 {[%clk 0:00:37]}  Rf3 {[%clk 0:00:23]} 31. Qd1 {[%clk 0:00:38]}  Rf8 {[%clk 0:00:19]} 32. a4 {[%clk 0:00:37]}  Ba5 {[%clk 0:00:19]} 33. Rb1 {[%clk 0:00:35]}  h5 {[%clk 0:00:15]} 34. Rb5 {[%clk 0:00:26]}  g5 {[%clk 0:00:14]} 35. Rb3 {[%clk 0:00:12]}  h4 {[%clk 0:00:13]} 36. Rxf3 {[%clk 0:00:12]}  Qxf3 {[%clk 0:00:13]} 37. Bh2 {[%clk 0:00:13]}  h3 {[%clk 0:00:12]} 38. Ne1 {[%clk 0:00:13]}  Qg4+ {[%clk 0:00:09]} 39. Bg3 {[%clk 0:00:11]}  Nb2 {[%clk 0:00:04]} 40. Qc2 {[%clk 0:00:10]}  Nc4 {[%clk 0:00:02]} 41. Qg6+ {[%clk 0:00:10]}  Kh8 {[%clk 0:00:03]} 42. Qd3 {[%clk 0:00:10]}  Kg8 {[%clk 0:00:02]} 43. Kh2 {[%clk 0:00:11]}  Qf5 {[%clk 0:00:02]} 44. Qxf5 {[%clk 0:00:09]}  exf5 {[%clk 0:00:02]} 45. Kxh3 {[%clk 0:00:10]}  f4 {[%clk 0:00:03]} 46. Bh2 {[%clk 0:00:10]}  f3 {[%clk 0:00:03]} 47. Nxf3 {[%clk 0:00:05]}  Rxf3+ {[%clk 0:00:04]} 48. Kg4 {[%clk 0:00:06]}  Rd3 {[%clk 0:00:04]} 49. e6 {[%clk 0:00:06]}  Kf8 {[%clk 0:00:03]} 50. Kxg5 {[%clk 0:00:06]}  Rxd4 {[%clk 0:00:03]} 51. Kf6 {[%clk 0:00:06]}  Re4 {[%clk 0:00:03]} 52. Rc2 {[%clk 0:00:04]}  Ke8 {[%clk 0:00:03]} 53. Kf5 {[%clk 0:00:05]}  Re1 {[%clk 0:00:03]} 54. Ra2 {[%clk 0:00:03]}  Ke7 {[%clk 0:00:01]} 55. Bg3 {[%clk 0:00:03]}  Nd6+ {[%clk 0:00:02]} 56. Kg4 {[%clk 0:00:02]}  Kxe6 {[%clk 0:00:02]} 57. Rb2 {[%clk 0:00:03]}  Re4+ {[%clk 0:00:01]} 58. Kh3 {[%clk 0:00:03]}  Rxa4 {[%clk 0:00:02]} 59. Rb8 {[%clk 0:00:03]}  Rb4 {[%clk 0:00:02]} 60. Rh8 {[%clk 0:00:03]}  Rb6 {[%clk 0:00:03]} 61. Rh6+ {[%clk 0:00:03]}  Kd7 {[%clk 0:00:03]} 62. Rh7+ {[%clk 0:00:04]}  Kd8 {[%clk 0:00:03]} 63. Rh6 {[%clk 0:00:05]}  Kc7 {[%clk 0:00:04]} 64. Kg4 {[%clk 0:00:05]}  Bb4 {[%clk 0:00:03]} 65. f4 {[%clk 0:00:05]}  Rb5 {[%clk 0:00:03]} 66. f5 {[%clk 0:00:05]}  d4 {[%clk 0:00:03]} 67. f6 {[%clk 0:00:06]}  Kd7 {[%clk 0:00:03]} 68. Rh7+ {[%clk 0:00:04]}  Ke6 {[%clk 0:00:04]} 69. Bh4 {[%clk 0:00:04]}  Nf7 {[%clk 0:00:04]} 70. Rg7 {[%clk 0:00:04]}  Rd5 {[%clk 0:00:04]} 71. Rg8 {[%clk 0:00:04]}  d3 {[%clk 0:00:04]} 72. Re8+ {[%clk 0:00:04]}  Kd7 {[%clk 0:00:05]} 73. Ra8 {[%clk 0:00:02]}  d2 {[%clk 0:00:05]} 74. Ra7+ {[%clk 0:00:03]}  Ke6 {[%clk 0:00:05]} 75. Ra1 {[%clk 0:00:03]}  d1=Q+ {[%clk 0:00:05]} 76. Rxd1 {[%clk 0:00:03]}  Rxd1 {[%clk 0:00:06]} 0-1


[Site "https://www.chess.com"]

[Event "Titled Tuesday Blitz June 6 Late 2023"]
[White "Fiorito, Francisco"]
[Black "Daggupati, Balaji"]
[WhiteFideId "180165"]
[BlackFideId "2090759"]
[WhiteElo "2319"]
[BlackElo "2743"]
[Result "1-0"]
[Round "10"]
[TimeControl "180+2"]
[Date "2023.06.07"]
[WhiteClock "0:00:17"]
[BlackClock "0:00:54"]
[Board "24"]

1. e4 {[%clk 0:03:00]}  c5 {[%clk 0:03:00]} 2. Nf3 {[%clk 0:03:00]}  e6 {[%clk 0:03:00]} 3. Bd3 {[%clk 0:03:00]}  g6 {[%clk 0:02:59]} 4. O-O {[%clk 0:03:00]}  Bg7 {[%clk 0:02:59]} 5. c3 {[%clk 0:02:52]}  d5 {[%clk 0:02:59]} 6. Re1 {[%clk 0:02:51]}  Ne7 {[%clk 0:02:56]} 7. Bc2 {[%clk 0:02:49]}  O-O {[%clk 0:02:52]} 8. exd5 {[%clk 0:02:49]}  Nxd5 {[%clk 0:02:51]} 9. d4 {[%clk 0:02:49]}  cxd4 {[%clk 0:02:51]} 10. Nxd4 {[%clk 0:02:49]}  b6 {[%clk 0:02:51]} 11. Nd2 {[%clk 0:02:47]}  Bb7 {[%clk 0:02:51]} 12. Ne4 {[%clk 0:02:46]}  h6 {[%clk 0:02:48]} 13. Ng3 {[%clk 0:02:29]}  Nd7 {[%clk 0:02:44]} 14. Qe2 {[%clk 0:02:18]}  a6 {[%clk 0:02:39]} 15. Nxe6 {[%clk 0:01:57]}  fxe6 {[%clk 0:02:09]} 16. Qxe6+ {[%clk 0:01:58]}  Kh8 {[%clk 0:02:10]} 17. Qxg6 {[%clk 0:01:57]}  N7f6 {[%clk 0:01:55]} 18. Nh5 {[%clk 0:01:08]}  Qc7 {[%clk 0:01:40]} 19. c4 {[%clk 0:00:21]}  Rac8 {[%clk 0:00:59]} 20. Bxh6 {[%clk 0:00:17]}  Bxh6 {[%clk 0:00:58]} 21. Qxh6+ {[%clk 0:00:17]}  Nh7 {[%clk 0:00:59]} 22. cxd5 {[%clk 0:00:17]}  Qxc2 {[%clk 0:00:54]} 23. Qg7# {[%clk 0:00:17]} 1-0


[Site "https://www.chess.com"]

[Event "Titled Tuesday Blitz June 6 Late 2023"]
[White "Tanenbaum, Zachary"]
[Black "Simonian, Hrair"]
[WhiteFideId "2060850"]
[BlackFideId "13302337"]
[WhiteElo "2207"]
[BlackElo "2447"]
[Result "0-1"]
[Round "10"]
[TimeControl "180+2"]
[Date "2023.06.07"]
[WhiteClock "0:00:02"]
[BlackClock "0:01:34"]
[Board "25"]

1. e4 {[%clk 0:03:00]}  c5 {[%clk 0:02:59]} 2. Nf3 {[%clk 0:03:00]}  e6 {[%clk 0:03:00]} 3. d4 {[%clk 0:03:01]}  cxd4 {[%clk 0:03:01]} 4. Nxd4 {[%clk 0:03:01]}  a6 {[%clk 0:03:01]} 5. Bd3 {[%clk 0:03:01]}  Bc5 {[%clk 0:03:01]} 6. Nb3 {[%clk 0:03:01]}  Ba7 {[%clk 0:03:02]} 7. Qe2 {[%clk 0:02:55]}  d6 {[%clk 0:03:00]} 8. Be3 {[%clk 0:02:53]}  Bxe3 {[%clk 0:03:00]} 9. Qxe3 {[%clk 0:02:54]}  Nf6 {[%clk 0:03:01]} 10. O-O {[%clk 0:02:53]}  Nc6 {[%clk 0:03:01]} 11. f4 {[%clk 0:02:53]}  e5 {[%clk 0:03:00]} 12. N1d2 {[%clk 0:02:41]}  O-O {[%clk 0:02:59]} 13. Kh1 {[%clk 0:02:38]}  b5 {[%clk 0:02:57]} 14. a4 {[%clk 0:02:37]}  Rb8 {[%clk 0:02:54]} 15. axb5 {[%clk 0:02:36]}  axb5 {[%clk 0:02:55]} 16. Nf3 {[%clk 0:02:22]}  Ng4 {[%clk 0:02:55]} 17. Qd2 {[%clk 0:02:20]}  Qb6 {[%clk 0:02:46]} 18. Rae1 {[%clk 0:02:10]}  exf4 {[%clk 0:02:41]} 19. Qxf4 {[%clk 0:02:09]}  Nf2+ {[%clk 0:02:35]} 20. Rxf2 {[%clk 0:02:07]}  Qxf2 {[%clk 0:02:35]} 21. Qxd6 {[%clk 0:01:59]}  Bh3 {[%clk 0:02:26]} 22. Bf1 {[%clk 0:01:47]}  Bg4 {[%clk 0:02:23]} 23. Re2 {[%clk 0:01:06]}  Qxf1+ {[%clk 0:02:21]} 24. Ng1 {[%clk 0:01:04]}  Bxe2 {[%clk 0:02:20]} 25. Qxc6 {[%clk 0:01:03]}  Rbd8 {[%clk 0:02:20]} 26. Qc5 {[%clk 0:00:49]}  Rd1 {[%clk 0:02:19]} 27. h3 {[%clk 0:00:49]}  Qxg1+ {[%clk 0:02:06]} 28. Qxg1 {[%clk 0:00:48]}  Rxg1+ {[%clk 0:02:07]} 29. Kxg1 {[%clk 0:00:49]}  Bd1 {[%clk 0:02:07]} 30. Nd4 {[%clk 0:00:48]}  Rd8 {[%clk 0:02:05]} 31. c3 {[%clk 0:00:49]}  Ba4 {[%clk 0:01:57]} 32. Kf2 {[%clk 0:00:47]}  b4 {[%clk 0:01:54]} 33. Ke3 {[%clk 0:00:46]}  bxc3 {[%clk 0:01:54]} 34. bxc3 {[%clk 0:00:47]}  Rc8 {[%clk 0:01:53]} 35. Kd3 {[%clk 0:00:44]}  f6 {[%clk 0:01:52]} 36. Nf5 {[%clk 0:00:43]}  Kf8 {[%clk 0:01:49]} 37. c4 {[%clk 0:00:42]}  Bb3 {[%clk 0:01:46]} 38. Ne3 {[%clk 0:00:41]}  Ke7 {[%clk 0:01:43]} 39. Kc3 {[%clk 0:00:39]}  Ba4 {[%clk 0:01:41]} 40. Nd5+ {[%clk 0:00:38]}  Kd8 {[%clk 0:01:33]} 41. Nb6 {[%clk 0:00:39]}  Bc6 {[%clk 0:01:31]} 42. Nxc8 {[%clk 0:00:34]}  Kxc8 {[%clk 0:01:32]} 43. Kd4 {[%clk 0:00:34]}  Kd7 {[%clk 0:01:33]} 44. g3 {[%clk 0:00:29]}  Ke6 {[%clk 0:01:32]} 45. Kc5 {[%clk 0:00:16]}  Bxe4 {[%clk 0:01:31]} 46. Kd4 {[%clk 0:00:09]}  Bg2 {[%clk 0:01:31]} 47. h4 {[%clk 0:00:09]}  Kf5 {[%clk 0:01:32]} 48. Ke3 {[%clk 0:00:07]}  Kg4 {[%clk 0:01:32]} 49. Kf2 {[%clk 0:00:07]}  Bc6 {[%clk 0:01:33]} 50. c5 {[%clk 0:00:06]}  h5 {[%clk 0:01:33]} 51. Kg1 {[%clk 0:00:05]}  Kxg3 {[%clk 0:01:33]} 52. Kf1 {[%clk 0:00:05]}  g5 {[%clk 0:01:34]} 53. hxg5 {[%clk 0:00:04]}  fxg5 {[%clk 0:01:35]} 54. Ke2 {[%clk 0:00:04]}  h4 {[%clk 0:01:36]} 55. Ke3 {[%clk 0:00:04]}  h3 {[%clk 0:01:36]} 56. Kd4 {[%clk 0:00:04]}  h2 {[%clk 0:01:37]} 57. Ke5 {[%clk 0:00:04]}  h1=Q {[%clk 0:01:37]} 58. Kf5 {[%clk 0:00:04]}  Qd5+ {[%clk 0:01:37]} 59. Kg6 {[%clk 0:00:04]}  g4 {[%clk 0:01:36]} 60. Kh6 {[%clk 0:00:04]}  Kf4 {[%clk 0:01:36]} 61. Kg6 {[%clk 0:00:04]}  Qe6+ {[%clk 0:01:37]} 62. Kg7 {[%clk 0:00:04]}  Kg5 {[%clk 0:01:36]} 63. Kf8 {[%clk 0:00:03]}  Bd5 {[%clk 0:01:35]} 64. Kg7 {[%clk 0:00:02]}  Qg8# {[%clk 0:01:34]} 0-1


[Site "https://www.chess.com"]